bitfinex/quotes_ETHUSD_20240731
["timestamp","ask_amount","ask_price","bid_price","bid_amount"]
[1722454632650,3.04312,3286.1,3285.8,0.04782598]
[1722454632833,6.08633,3286.1,3285.4,35.0]
[1722454632999,6.08633,3286.1,3284.8,2.398]
[1722454633000,6.08642,3286.0,3285.9,0.04789018]
[1722454633201,3.04325,3286.0,3284.8,2.398]
[1722454633407,3.0,3286.6,3285.0,3.04412]
[1722454633601,0.55,3286.5,3285.0,3.04412]
[1722454633792,3.905,3286.5,3285.1,3.03356863]
[1722454634020,3.04329,3286.0,3285.1,3.09240034]
[1722454634361,3.0431,3286.2,3285.2,35.0]
[1722454634659,3.04327,3286.0,3285.3,0.04824344]
[1722454634872,0.905,3286.5,3285.3,0.04824344]
[1722454634873,3.04349,3285.7,3285.3,0.04824344]
[1722454635015,0.905,3286.5,3285.3,0.04824344]
[1722454635016,3.04329,3286.0,3285.3,0.04824344]
[1722454635217,0.55,3286.5,3285.4,35.0484147]
[1722454635439,3.04305,3286.2,3285.4,35.0484147]
[1722454635624,3.04332,3285.9,3285.4,35.0484147]
[1722454635844,3.04329,3286.0,3285.4,35.0484147]
[1722454636184,3.04321,3286.0,3285.4,35.0484147]
[1722454636473,3.04321,3286.0,3285.4,38.03362299]
[1722454636682,0.55,3286.1,3285.4,38.03362299]
[1722454636834,3.0,3286.8,3285.4,38.03362299]
[1722454637034,3.04272,3286.6,3285.5,3.04365]
[1722454637236,3.04266,3286.6,3285.6,3.09181781]
[1722454637438,3.04266,3286.6,3285.7,3.6631017]
[1722454637981,2.2554,3286.9,3285.7,3.6631017]
[1722454637982,2.2554,3286.9,3285.8,0.04884104]
[1722454638273,3.0428,3286.5,3285.8,0.04884104]
[1722454638448,3.04266,3286.6,3285.4,37.98520829]
[1722454638646,3.04251,3286.8,3285.9,3.04328]
[1722454638856,3.04251,3286.8,3286.0,0.35304696]
[1722454639774,3.04258,3286.7,3286.0,0.04871896]
[1722454640273,3.04275,3286.5,3286.1,0.04866053]
[1722454640472,3.04285,3286.4,3285.4,41.02890829]
[1722454640671,3.04294,3286.3,3285.5,0.04901113]
[1722454640976,3.04309,3286.2,3285.6,2.98520829]
[1722454641180,3.04309,3286.2,3285.5,0.04901113]
[1722454641362,3.04309,3286.2,3285.7,0.04889425]
[1722454641549,3.0425,3286.8,3285.6,0.04895269]
[1722454641550,3.04253,3286.8,3285.6,0.04895269]
[1722454641878,3.04251,3286.8,3285.8,0.04883582]
[1722454642037,3.04275,3286.5,3285.9,0.04877738]
[1722454642442,9.7254,3286.9,3285.9,0.04877738]
[1722454642777,3.04286,3286.4,3285.9,0.04877738]
[1722454643332,9.7254,3286.9,3285.7,3.0434]
[1722454643531,10.51242,3286.9,3286.0,3.04314]
[1722454643737,10.51242,3286.9,3286.1,0.35297453]
[1722454643980,3.04254,3286.8,3286.1,0.04866053]
[1722454644295,5.30224,3287.4,3286.3,3.04284]
[1722454644296,2.2603,3287.4,3286.3,3.04284]
[1722454644497,3.04221,3287.1,3286.4,0.04848528]
[1722454644643,3.04221,3287.1,3286.5,35.0]
[1722454644842,3.04221,3287.1,3286.6,0.04836846]
[1722454645158,3.04229,3287.0,3286.6,0.04836846]
[1722454645543,3.04214,3287.2,3286.6,0.04836846]
[1722454645746,3.04219,3287.1,3286.6,0.04836846]
[1722454646140,8.34424,3287.4,3286.6,0.04836846]
[1722454646349,0.55,3287.3,3286.6,0.04836846]
[1722454646572,3.0423,3287.0,3286.6,0.04836846]
[1722454646883,3.04246,3286.9,3286.6,0.04836846]
[1722454647082,3.0423,3287.0,3286.6,0.04836846]
[1722454647083,3.04252,3286.8,3286.6,0.04836846]
[1722454647384,3.0423,3287.0,3286.6,0.04836846]
[1722454647585,3.04248,3286.8,3286.6,0.04836846]
[1722454648182,3.04213,3287.2,3286.6,0.04836846]
[1722454648512,3.0422,3287.1,3286.6,0.04836846]
[1722454648782,3.59203,3287.3,3286.6,0.04836846]
[1722454649181,7.47,3287.5,3286.6,0.04836846]
[1722454649182,3.04184,3287.5,3286.6,3.03357675]
[1722454649408,3.0,3287.8,3286.6,3.03357675]
[1722454649697,3.04198,3287.4,3286.6,3.03357675]
[1722454650044,3.04201,3287.3,3286.6,3.03357675]
[1722454650246,3.04217,3287.2,3286.6,3.03357675]
[1722454650501,3.04217,3287.2,3286.6,0.04836846]
[1722454650645,6.08435,3287.2,3286.6,0.04836846]
[1722454650851,3.0422,3287.1,3286.6,0.04836846]
[1722454651847,3.0421,3287.2,3286.4,3.04283]
[1722454652095,3.0421,3287.2,3286.5,0.048004]
[1722454652393,3.0421,3287.2,3286.6,35.0]
[1722454652549,3.04196,3287.4,3286.6,35.0]
[1722454652751,3.04196,3287.4,3286.7,0.04788719]
[1722454653184,3.04177,3287.6,3286.7,0.04788719]
[1722454653389,3.04177,3287.6,3285.8,3.10421286]
[1722454653390,3.59182,3287.5,3286.8,35.0]
[1722454653745,3.0422,3287.1,3286.9,0.0477704]
[1722454654104,3.04206,3287.3,3286.9,0.0477704]
[1722454654266,4.52110851,3287.5,3286.9,0.0477704]
[1722454654451,1.54900263,3287.4,3286.9,0.0477704]
[1722454654648,3.04219,3287.1,3286.9,0.0477704]
[1722454655357,3.04208,3287.3,3286.9,0.0477704]
[1722454655957,3.97115851,3287.5,3286.9,0.0477704]
[1722454656210,4.59085332,3287.4,3286.9,0.0477704]
[1722454656355,1.54893332,3287.3,3286.9,0.0477704]
[1722454656885,3.04197,3287.4,3286.8,35.0]
[1722454657057,1.54891412,3287.3,3286.9,0.0477704]
[1722454657702,4.59099412,3287.3,3286.9,0.0477704]
[1722454657872,1.54891412,3287.2,3286.9,0.0477704]
[1722454658551,0.93233483,3287.4,3286.9,0.0477704]
[1722454658755,1.54891341,3287.3,3286.9,0.0477704]
[1722454659502,5.52333491,3287.3,3286.9,0.0477704]
[1722454659704,1.54891341,3287.2,3286.9,0.0477704]
[1722454660797,7.0169715,3287.0,3286.9,0.0477704]
[1722454661006,7.63347341,3287.0,3286.9,0.0477704]
[1722454661153,7.63347341,3287.0,3285.6,5.38602]
[1722454661154,3.04279,3286.5,3285.6,5.38602]
[1722454661357,1.54891341,3286.4,3285.6,5.38602]
[1722454661569,1.54891341,3286.4,3285.7,35.58523841]
[1722454661784,3.04303,3286.2,3285.7,35.0]
[1722454661953,3.04303,3286.2,3285.8,0.04657798]
[1722454662166,4.59258831,3286.1,3285.8,0.04657798]
[1722454662369,3.0433,3285.9,3285.8,0.04657798]
[1722454662592,3.0433,3285.9,3285.2,2.2791]
[1722454662593,3.0434,3285.8,3285.3,35.0]
[1722454662778,1.54956068,3285.7,3285.3,35.0]
[1722454662973,0.93260196,3285.6,3285.4,0.04681174]
[1722454663314,0.93260196,3285.8,3285.4,0.04681174]
[1722454663514,1.54961264,3285.7,3285.4,0.04681174]
[1722454663814,0.93260196,3285.6,3285.4,0.04681174]
[1722454663974,2.4822146,3285.5,3285.4,0.04681174]
[1722454664177,1.54961264,3285.5,3285.4,0.04681174]
[1722454664398,2.4822146,3285.5,3284.7,2.2785]
[1722454664597,1.54961264,3285.4,3284.8,0.532296]
[1722454664794,0.93260196,3285.6,3284.9,3.04419]
[1722454664961,0.93260196,3285.7,3284.9,3.04419]
[1722454665297,1.54968063,3285.6,3285.0,0.04704555]
[1722454665518,1.54968063,3285.6,3285.0,35.40939871]
[1722454665834,4.59326063,3285.6,3285.0,35.40939871]
[1722454665978,3.04358,3285.6,3285.0,35.40939871]
[1722454666382,3.04384,3285.4,3285.0,35.04704555]
[1722454666582,1.54979682,3285.3,3285.0,35.04704555]
[1722454666839,2.48239878,3285.3,3285.0,35.04704555]
[1722454666982,0.93260196,3285.4,3285.0,35.04704555]
[1722454667178,0.93260196,3285.5,3285.1,2.98520829]
[1722454667420,2.48239414,3285.4,3285.0,35.04704555]
[1722454667718,2.48239414,3285.4,3285.1,0.04743004]
[1722454667719,0.93260196,3285.4,3285.1,0.04743004]
[1722454667920,0.93260196,3285.3,3285.1,0.04743004]
[1722454668123,3.0435,3285.7,3285.1,0.04743004]
[1722454668324,0.93193476,3285.3,3285.1,0.04743004]
[1722454668832,0.93193476,3285.2,3285.1,0.04743004]
[1722454669326,3.04395,3285.2,3284.3,5.31824]
[1722454669478,3.04395,3285.2,3284.4,0.04785237]
[1722454669479,3.97547733,3285.2,3284.4,0.04785237]
[1722454670155,3.97562733,3285.1,3284.4,0.04785237]
[1722454670307,0.93152733,3285.0,3284.4,0.04785237]
[1722454670524,0.93152733,3285.0,3284.1,35.0]
[1722454670525,0.93152733,3284.9,3284.1,35.0]
[1722454670742,0.93152733,3284.9,3284.2,3.03324803]
[1722454670918,0.93152733,3285.0,3284.2,3.03324803]
[1722454671253,3.04425,3284.9,3284.2,3.03324803]
[1722454671467,0.93152733,3284.8,3284.2,3.03324803]
[1722454671757,0.93152733,3284.9,3284.2,3.03324803]
[1722454671941,0.93152733,3285.0,3284.4,3.04466]
[1722454672158,0.93152733,3285.1,3284.5,0.04786429]
[1722454673121,0.93152733,3285.1,3284.6,3.04444]
[1722454673349,0.93152733,3285.1,3284.7,3.09214733]
[1722454673516,0.93152733,3285.4,3284.9,5.34347]
[1722454673714,1.24257968,3285.5,3285.0,0.58246096]
[1722454673715,0.93152733,3285.5,3285.0,0.58246096]
[1722454674072,0.93152733,3285.5,3285.1,35.0]
[1722454674374,0.93152733,3285.5,3285.2,3.09193443]
[1722454674661,0.93152733,3285.6,3285.3,3.04385]
[1722454674841,0.93152733,3285.8,3285.3,3.04385]
[1722454675157,0.93152733,3285.8,3285.5,3.04367]
[1722454675454,0.93152733,3285.8,3285.6,0.04772935]
[1722454675654,0.93152733,3285.7,3285.6,0.04772935]
[1722454675817,0.93152733,3285.8,3285.6,35.0]
[1722454676014,0.93152733,3285.8,3285.6,35.04765636]
[1722454676215,0.93152733,3285.8,3285.6,38.03286465]
[1722454676452,0.93152733,3285.9,3285.6,38.03286465]
[1722454676660,0.93152733,3286.0,3285.6,38.03286465]
[1722454676956,0.93152733,3285.8,3285.6,35.04765636]
[1722454677253,0.93152733,3285.9,3285.6,35.04765636]
[1722454677657,3.97488733,3285.9,3285.6,35.04765636]
[1722454677860,3.97492733,3285.8,3285.6,35.04765636]
[1722454678062,0.93152733,3285.8,3285.6,35.04765636]
[1722454678263,0.93152733,3285.9,3285.6,35.04765636]
[1722454678419,0.93152733,3285.9,3285.6,38.03286465]
[1722454678956,0.93152733,3285.9,3285.6,35.04765636]
[1722454680480,0.93152733,3286.0,3285.6,35.04765636]
[1722454680796,0.93247101,3286.0,3285.6,35.04765636]
[1722454682177,0.93247101,3286.0,3285.9,6.0866]
[1722454682477,0.93247101,3286.5,3286.1,3.04305]
[1722454682673,0.93247101,3286.5,3286.3,3.04291]
[1722454682887,0.93247101,3286.7,3286.3,3.04291]
[1722454683054,0.93247101,3286.8,3286.4,0.04702996]
[1722454683254,0.93247101,3286.7,3286.4,0.04702996]
[1722454683438,0.93247101,3286.7,3286.5,0.308994]
[1722454683639,1.55505914,3287.0,3286.5,0.308994]
[1722454683640,0.93247101,3287.0,3286.5,0.308994]
[1722454683979,0.93247101,3286.9,3286.6,0.04691314]
[1722454684204,0.93247101,3287.0,3286.7,3.0425]
[1722454684365,1.24329468,3287.1,3286.7,3.08887091]
[1722454684366,0.93247101,3287.1,3286.7,3.08887091]
[1722454684538,1.24329468,3287.2,3286.7,3.08887091]
[1722454684539,0.93247101,3287.2,3286.7,3.08887091]
[1722454684740,0.93247101,3287.2,3286.9,3.04237]
[1722454685075,0.93247101,3287.3,3287.0,3.08818601]
[1722454685277,0.93247101,3287.3,3287.0,0.04597601]
[1722454685485,0.93247101,3287.3,3287.0,3.08816601]
[1722454685648,0.93247101,3287.4,3287.0,3.04222]
[1722454685849,2.2693,3288.6,3287.1,3.08809762]
[1722454686053,0.93278415,3287.6,3287.1,3.14893427]
[1722454686678,0.93278415,3287.6,3287.2,3.04209]
[1722454686840,0.93278415,3287.6,3287.2,0.10663479]
[1722454687555,0.93278415,3287.7,3287.2,0.10663479]
[1722454687752,0.93278415,3287.7,3287.4,3.04186]
[1722454687951,0.93278415,3287.7,3287.5,0.04556954]
[1722454688278,1.2437122,3287.9,3287.5,0.04556954]
[1722454688279,0.93278415,3287.9,3287.5,0.04556954]
[1722454688485,0.93278415,3288.1,3287.7,3.04157]
[1722454688688,1.55464025,3288.4,3287.8,3.04146]
[1722454688689,0.93278415,3288.3,3287.8,3.04146]
[1722454688985,0.93278415,3288.6,3288.1,3.04119]
[1722454689285,1.2437122,3288.7,3288.0,3.04129]
[1722454689286,0.93177861,3288.5,3288.0,3.04129]
[1722454689583,0.93177861,3288.6,3288.1,0.10583532]
[1722454689877,0.93177861,3288.7,3288.1,3.14706532]
[1722454690179,0.93177861,3288.8,3288.1,0.10583532]
[1722454690365,0.93177861,3289.0,3288.4,3.0409]
[1722454690567,0.93177861,3289.1,3288.5,0.10550088]
[1722454690779,0.93177861,3289.0,3288.3,3.04107]
[1722454690938,3.04088,3288.6,3288.4,0.04474765]
[1722454691140,3.0409,3288.5,3287.7,2.2914]
[1722454691440,1.24237148,3289.0,3287.8,3.08661776]
[1722454691441,0.93177861,3288.7,3287.8,3.08661776]
[1722454691683,1.24237148,3288.9,3287.8,0.04509776]
[1722454691684,3.97248861,3288.8,3287.8,0.04509776]
[1722454691842,3.97248861,3288.8,3287.8,3.32023754]
[1722454692040,0.93177861,3288.9,3287.9,3.10226234]
[1722454692241,0.93177861,3288.9,3287.8,0.27874754]
[1722454692242,3.0407,3288.8,3287.8,0.27874754]
[1722454692435,3.04088,3288.6,3288.0,0.04498104]
[1722454692678,3.04096,3288.5,3287.7,2.2914]
[1722454692880,3.04087,3288.6,3288.1,0.04492269]
[1722454693066,3.04087,3288.6,3287.7,5.33301]
[1722454693252,3.04087,3288.6,3288.2,0.04486434]
[1722454693453,3.56237201,3288.6,3287.7,2.2914]
[1722454693666,3.04105,3288.4,3288.3,0.044806]
[1722454693853,3.04105,3288.4,3287.8,35.0]
[1722454694058,3.04105,3288.4,3288.3,0.044806]
[1722454694256,6.0821,3288.4,3288.3,0.044806]
[1722454694457,3.04129,3288.1,3287.2,5.74372798]
[1722454694872,3.04145,3287.9,3287.3,35.04538962]
[1722454695072,3.04177,3287.6,3287.3,0.04538962]
[1722454695281,0.9644472,3288.4,3286.8,3.04245]
[1722454695282,3.0416,3287.8,3286.8,3.04245]
[1722454695584,3.04173,3287.6,3286.9,35.0]
[1722454695890,3.04169,3287.7,3287.0,0.04556477]
[1722454696244,3.04169,3287.7,3286.8,38.04247]
[1722454696453,3.0421,3287.2,3287.1,0.04510538]
[1722454696774,3.04189,3287.5,3286.1,2.3591]
[1722454696775,3.04183,3287.5,3286.1,2.3591]
[1722454696978,3.68856086,3287.4,3286.2,0.23591]
[1722454697301,3.68858086,3287.4,3286.4,3.04278]
[1722454697450,3.68858086,3287.4,3286.5,3.04269]
[1722454697652,3.97333861,3287.8,3286.5,3.10356107]
[1722454697847,0.93177861,3287.8,3286.6,3.04264]
[1722454698107,0.93177861,3287.8,3286.7,35.0]
[1722454698315,3.04178,3287.6,3286.7,35.0]
[1722454698591,7.47,3287.9,3286.9,3.04236]
[1722454698791,0.92975672,3288.1,3287.1,3.04213]
[1722454698954,0.92975672,3288.2,3287.2,0.06083545]
[1722454699158,5.24515283,3288.4,3287.2,0.06083545]
[1722454699159,0.92975672,3288.3,3287.2,0.06083545]
[1722454699374,3.0415,3287.9,3287.1,2.4865]
[1722454699696,3.04169,3287.7,3286.7,35.0]
[1722454699895,3.0416,3287.8,3286.8,6.10324143]
[1722454700056,3.04165,3287.7,3286.8,6.0424]
[1722454700407,3.0416,3287.8,3286.7,38.04255]
[1722454700408,3.04156,3287.8,3286.7,38.04255]
[1722454700609,3.04202,3287.3,3286.7,35.0]
[1722454700902,0.608385,3287.3,3286.7,35.0]
[1722454701059,0.92975672,3287.7,3286.7,35.0]
[1722454701060,3.04217,3287.2,3286.7,35.0]
[1722454701398,3.04247,3286.8,3286.7,35.0]
[1722454701600,3.04224,3287.1,3286.7,35.0]
[1722454701804,3.04204,3287.3,3286.7,35.0]
[1722454702461,3.04211,3287.2,3286.7,35.0]
[1722454702801,0.92975672,3287.7,3286.7,35.0]
[1722454702802,3.04219,3287.1,3286.7,35.0]
[1722454703163,3.04229,3287.0,3286.7,35.0]
[1722454703470,3.04229,3287.0,3286.0,5.51888]
[1722454703471,3.04247,3286.8,3286.0,2.4757]
[1722454703657,3.04284,3286.4,3285.5,2.2902]
[1722454704102,3.04301,3286.3,3285.6,35.0]
[1722454704302,3.04308,3286.2,3285.6,35.0]
[1722454704502,0.92975672,3286.8,3285.7,0.04629793]
[1722454704662,3.04308,3286.2,3285.7,0.04629793]
[1722454705002,3.04314,3286.1,3285.1,5.33422]
[1722454705204,3.04308,3286.2,3285.2,0.04659016]
[1722454705355,3.04308,3286.2,3285.2,3.09054016]
[1722454705356,3.04313,3286.1,3285.2,3.09054016]
[1722454705561,3.04322,3286.0,3285.2,0.04659016]
[1722454705802,3.04322,3286.0,3285.3,35.0]
[1722454705999,3.0434,3285.8,3285.4,0.04647325]
[1722454706201,3.04306,3286.2,3285.4,0.04647325]
[1722454706499,1.32697439,3286.7,3285.3,3.10465053]
[1722454706704,3.04293,3286.3,3285.5,0.04711796]
[1722454706900,3.04293,3286.3,3285.5,3.03232625]
[1722454707107,3.04323,3286.0,3285.5,3.03232625]
[1722454707307,3.04318,3286.1,3285.5,0.04711796]
[1722454707511,3.04318,3286.1,3285.6,35.0]
[1722454707800,3.04318,3286.1,3285.6,35.04705952]
[1722454708159,3.04337,3285.9,3285.6,35.04705952]
[1722454708359,3.043,3286.3,3285.6,35.04705952]
[1722454708591,3.04322,3286.0,3285.6,35.04705952]
[1722454708973,3.04317,3286.1,3285.6,35.04705952]
[1722454709395,3.04303,3286.2,3285.6,38.03226781]
[1722454709597,3.04318,3286.1,3285.6,38.03226781]
[1722454709796,3.04318,3286.1,3285.6,35.04705952]
[1722454710004,3.04335,3285.9,3285.6,35.04705952]
[1722454710224,3.04318,3286.1,3285.6,35.04705952]
[1722454710795,3.04322,3286.0,3285.6,35.04705952]
[1722454710994,3.04318,3286.1,3285.6,35.04705952]
[1722454711195,3.9285327,3286.6,3285.7,3.10428176]
[1722454711391,3.9285327,3286.6,3285.6,38.03226781]
[1722454711392,7.47,3286.9,3286.1,3.04309]
[1722454711690,3.04234,3287.0,3286.2,0.1075612]
[1722454711917,3.04246,3286.9,3286.3,35.0]
[1722454712316,3.04223,3287.1,3286.4,0.04662859]
[1722454712519,3.3025327,3287.4,3286.4,3.03183688]
[1722454712520,3.9704427,3287.4,3286.4,3.03183688]
[1722454712717,4.2799036,3287.5,3286.4,3.03183688]
[1722454712718,0.15406112,3287.5,3286.4,0.04662859]
[1722454712926,3.0422,3287.1,3286.5,35.0]
[1722454713104,8.3985327,3287.6,3286.5,35.0]
[1722454713105,3.04196,3287.4,3286.5,35.0]
[1722454713303,0.9285327,3287.5,3286.5,35.0]
[1722454713304,3.04256,3286.7,3286.6,0.04640495]
[1722454713614,3.04243,3286.9,3286.6,0.04640495]
[1722454713803,3.04256,3286.7,3286.6,0.04640495]
[1722454714138,3.04256,3286.7,3285.8,3.04339]
[1722454714139,3.04266,3286.6,3285.4,5.29593]
[1722454714427,3.04294,3286.3,3285.5,35.04530295]
[1722454714845,6.97185183,3286.7,3285.5,35.04530295]
[1722454715127,3.04314,3286.1,3285.5,35.04530295]
[1722454715329,3.04307,3286.2,3285.5,38.03051124]
[1722454715591,3.04326,3286.0,3285.5,38.03051124]
[1722454715937,3.04307,3286.2,3285.5,38.03051124]
[1722454716440,0.92926183,3286.6,3285.6,0.06087144]
[1722454716739,3.04272,3286.6,3285.6,0.06087144]
[1722454716903,3.0,3286.5,3285.7,0.65868633]
[1722454717100,3.0,3286.5,3285.8,35.0]
[1722454717304,3.04285,3286.4,3285.8,35.04512763]
[1722454717940,6.04277,3286.5,3285.8,35.04512763]
[1722454718143,3.04287,3286.4,3285.8,35.04512763]
[1722454718346,3.04322,3286.0,3285.8,35.04512763]
[1722454718514,3.04312,3286.1,3285.8,35.04512763]
[1722454718715,3.0431,3286.2,3285.8,35.04512763]
[1722454718907,3.04312,3286.1,3285.8,35.04512763]
[1722454719102,3.97226183,3286.3,3285.8,35.04512763]
[1722454719459,3.951449,3286.4,3285.8,35.04512763]
[1722454719460,3.04304,3286.2,3285.8,35.04512763]
[1722454720107,3.04317,3286.1,3285.8,35.04512763]
[1722454720304,3.04296,3286.3,3285.8,35.04512763]
[1722454720644,3.04287,3286.4,3285.8,35.04512763]
[1722454721139,3.97213183,3286.4,3285.8,35.04512763]
[1722454721344,3.04285,3286.4,3285.8,38.03033592]
[1722454721706,3.92926183,3286.5,3285.8,35.04512763]
[1722454721906,3.04293,3286.3,3285.8,35.04512763]
[1722454722143,3.92926183,3286.5,3285.8,35.04512763]
[1722454722334,3.0,3286.5,3285.9,0.0608666]
[1722454722651,0.92926183,3286.6,3285.9,3.1492158]
[1722454722811,0.92926183,3286.6,3286.0,2.98520829]
[1722454723008,0.92926183,3286.6,3286.1,3.08806235]
[1722454723216,1.23901577,3286.8,3286.1,3.08800235]
[1722454723217,0.92926183,3286.8,3286.1,3.08800235]
[1722454723421,0.92926183,3287.0,3286.3,2.4604]
[1722454723760,0.92926183,3287.0,3286.4,0.04477709]
[1722454723957,3.97161183,3287.0,3286.4,0.04477709]
[1722454724254,3.04254,3286.8,3286.4,0.04477709]
[1722454724470,3.04256,3286.7,3286.0,2.98520829]
[1722454724616,3.04256,3286.7,3286.5,0.04485908]
[1722454724816,3.04279,3286.5,3285.8,2.4604]
[1722454725015,3.97182183,3286.7,3285.9,35.0452096]
[1722454726154,3.04299,3286.3,3285.9,35.0452096]
[1722454726539,3.97320756,3286.5,3285.9,35.0452096]
[1722454726866,3.04282,3286.5,3285.9,35.0452096]
[1722454727015,3.04284,3286.4,3285.9,35.0452096]
[1722454727627,0.93038756,3286.3,3285.9,35.0452096]
[1722454727825,3.0429,3286.4,3285.9,35.0452096]
[1722454728234,3.93038756,3286.6,3285.9,35.0452096]
[1722454728482,3.97304756,3286.6,3285.9,35.0452096]
[1722454728630,3.0,3286.5,3285.9,35.0452096]
[1722454728831,3.93038756,3286.5,3285.9,35.0452096]
[1722454729077,3.93038756,3286.7,3285.9,3.03041789]
[1722454729355,0.93038756,3286.7,3286.0,3.10405072]
[1722454729669,0.93038756,3286.8,3286.1,0.04509275]
[1722454730169,0.93038756,3286.8,3286.2,35.0]
[1722454730710,3.97293756,3286.8,3286.3,0.04497591]
[1722454731203,3.04256,3286.7,3286.3,0.04497591]
[1722454731364,3.04256,3286.7,3286.4,35.0]
[1722454731550,3.97286756,3286.8,3286.4,35.04491749]
[1722454731752,0.93038756,3286.8,3286.4,35.04491749]
[1722454731948,0.93038756,3286.8,3286.5,2.98520829]
[1722454732178,0.93038756,3286.8,3286.4,35.04491749]
[1722454732398,6.08526,3286.7,3286.6,0.04480068]
[1722454732551,3.04265,3286.6,3286.5,0.04485908]
[1722454732752,0.93136359,3286.6,3286.4,35.0]
[1722454732978,0.93136359,3286.5,3286.4,35.0]
[1722454733211,0.93136359,3286.5,3285.8,3.04335]
[1722454733431,0.93136359,3286.6,3285.9,0.553525]
[1722454733553,0.93136359,3286.6,3286.0,35.06085281]
[1722454733757,0.93136359,3286.7,3286.0,35.06085281]
[1722454734296,1.24177932,3286.8,3286.2,3.04295]
[1722454734297,0.93136359,3286.8,3286.2,3.04295]
[1722454734451,0.93136359,3286.8,3286.3,0.66945191]
[1722454734662,0.93136359,3286.9,3286.3,0.66945191]
[1722454734853,0.93136359,3286.9,3286.4,35.0]
[1722454735055,0.93136359,3287.0,3286.5,0.06085099]
[1722454735487,0.93136359,3287.0,3286.5,2.55665099]
[1722454735795,0.93136359,3287.1,3286.6,35.5599481]
[1722454736004,0.93136359,3287.1,3286.7,0.06084486]
[1722454736492,0.93136359,3287.0,3286.7,0.06084486]
[1722454736695,0.93136359,3287.0,3286.8,35.0]
[1722454736896,0.93136359,3287.1,3286.8,35.0]
[1722454737198,0.93136359,3287.1,3286.8,37.98520829]
[1722454737799,1.24177932,3287.2,3286.8,37.98520829]
[1722454737800,0.93136359,3287.0,3286.8,37.98520829]
[1722454738687,0.93136359,3286.9,3286.8,37.98520829]
[1722454738882,0.93359911,3286.9,3286.8,35.0]
[1722454739086,3.04183,3287.5,3286.8,35.0]
[1722454739252,0.93367644,3286.9,3286.8,35.0]
[1722454740206,1.24490192,3286.9,3286.5,2.4958]
[1722454740380,0.93407703,3286.7,3286.5,2.4958]
[1722454740696,0.93407703,3286.6,3286.5,37.4958]
[1722454741195,0.93407703,3286.6,3286.5,35.0]
[1722454741396,0.93407703,3286.7,3286.5,35.0]
[1722454742655,1.24490192,3286.7,3286.0,2.409]
[1722454742855,0.93467523,3286.4,3286.1,0.06085296]
[1722454743105,0.93467523,3286.3,3286.0,2.409]
[1722454743406,0.93467523,3286.3,3286.1,35.0]
[1722454743572,1.24490192,3286.3,3286.1,35.0]
[1722454743775,1.54920168,3286.2,3286.1,35.0]
[1722454743972,1.24490192,3286.2,3286.1,35.0]
[1722454744180,1.24490192,3286.3,3286.1,35.0]
[1722454744363,5.17690837,3286.2,3285.5,2.4383]
[1722454744562,0.93461651,3286.0,3285.5,2.4383]
[1722454744758,0.93461651,3285.8,3285.6,35.0]
[1722454745062,0.93461651,3285.7,3285.6,35.0]
[1722454745263,1.54942562,3285.7,3285.6,35.0]
[1722454745498,2.79558096,3285.7,3285.6,35.0]
[1722454745827,3.54246731,3285.7,3284.9,2.2681]
[1722454746030,0.93450894,3285.4,3285.2,35.0]
[1722454746197,0.93450894,3285.3,3285.2,35.0]
[1722454746689,0.93456494,3285.3,3285.2,35.0]
[1722454746889,0.93456494,3285.4,3285.2,35.0]
[1722454747127,0.93456494,3285.3,3285.2,35.0]
[1722454747687,2.79563792,3285.3,3285.2,35.0]
[1722454747892,1.24601192,3285.3,3285.2,35.0]
[1722454748187,1.24601192,3285.3,3284.5,3.04459]
[1722454748389,0.93416696,3285.2,3284.8,3.04426]
[1722454748594,0.93416696,3285.3,3284.9,35.0]
[1722454749019,0.93416696,3285.2,3284.9,35.0]
[1722454749330,2.48383994,3285.1,3284.9,35.0]
[1722454749494,0.93416696,3285.0,3284.9,35.0]
[1722454749933,0.93357334,3285.0,3284.9,35.0]
[1722454750793,2.79585063,3285.0,3284.9,35.0]
[1722454751246,6.57954515,3285.0,3284.9,35.0]
[1722454751446,6.57954515,3285.0,3283.9,2.4562]
[1722454751447,3.04447,3284.7,3283.9,2.4562]
[1722454751734,0.93310714,3284.4,3283.9,2.4562]
[1722454751911,0.93310714,3284.4,3284.0,35.0]
[1722454752094,0.93310714,3284.3,3284.0,35.0]
[1722454752292,0.93310714,3284.4,3284.0,37.98520829]
[1722454753124,3.04447,3284.7,3284.0,37.98520829]
[1722454753337,0.93289316,3284.5,3284.0,35.0]
[1722454753723,0.93289316,3284.4,3284.0,35.0]
[1722454753922,3.0448,3284.3,3284.0,35.0]
[1722454754120,0.93289316,3284.4,3283.0,0.1464054]
[1722454754121,1.24385755,3284.1,3283.0,0.1464054]
[1722454754323,3.97687666,3283.8,3283.0,0.1464054]
[1722454754656,0.93157666,3283.7,3283.1,35.0]
[1722454754853,0.93157666,3283.6,3283.2,0.0431192]
[1722454755324,1.2419454,3283.7,3283.2,0.0431192]
[1722454755325,0.93157666,3283.7,3283.2,0.0431192]
[1722454755527,0.93157666,3284.0,3283.3,35.0]
[1722454755724,3.93157666,3284.2,3283.4,0.0609058]
[1722454756143,3.04445,3284.7,3283.5,0.04294364]
[1722454756452,3.04471,3284.4,3283.6,35.0]
[1722454756651,0.93072783,3284.5,3283.7,0.04282662]
[1722454756810,3.97540783,3284.5,3283.7,0.04282662]
[1722454757015,1.62826861,3284.4,3283.4,3.04557]
[1722454757261,3.93072783,3284.6,3283.5,35.04294364]
[1722454757484,6.97523783,3284.6,3283.6,0.06089811]
[1722454757767,6.97523783,3284.6,3283.6,0.06089816]
[1722454757768,0.93072783,3284.5,3283.6,0.06089816]
[1722454757913,3.04477,3284.4,3283.7,0.04282662]
[1722454758113,3.04479,3284.3,3283.8,35.0]
[1722454758546,3.04464,3284.5,3283.9,0.04270961]
[1722454759120,3.04464,3284.5,3284.0,35.0]
[1722454759474,3.74217678,3284.5,3284.1,0.04259262]
[1722454759756,3.0447,3284.4,3284.1,0.04259262]
[1722454759914,3.04179,3284.3,3284.1,0.04259262]
[1722454760325,3.04464,3284.5,3284.1,0.04259262]
[1722454760558,3.0,3284.6,3284.1,0.04259262]
[1722454760559,6.04452,3284.6,3284.1,0.04259262]
[1722454760729,3.0,3284.6,3284.1,0.04259262]